[Event "*** SCC Grand Prix: Titled Tuesday Blitz"]
[Site "Chess.com"]
[Date "2020.08.11"]
[Round "1"]
[White "allvim"]
[Black "Son_of_Sultan"]
[Result "0-1"]
[WhiteElo "2384"]
[BlackElo "2764"]
[TimeControl "180+1"]
[EndTime "10:06:12 PDT"]
[Termination "Son_of_Sultan won by resignation"]

1. e4 {[%clk 0:03:00.2]} 1... c5 {[%clk 0:02:58.5]} 2. Nf3 {[%clk 0:02:59.7]}
2... Nc6 {[%clk 0:02:57.5]} 3. d4 {[%clk 0:02:59.7]} 3... cxd4 {[%clk
0:02:55.1]} 4. Nxd4 {[%clk 0:03:00.6]} 4... Nf6 {[%clk 0:02:54.2]} 5. Nc3 {[%clk
0:03:00.6]} 5... d6 {[%clk 0:02:53.9]} 6. f3 {[%clk 0:02:56.5]} 6... e5 {[%clk
0:02:43.9]} 7. Nb3 {[%clk 0:02:51.2]} 7... Be7 {[%clk 0:02:42.1]} 8. Be3 {[%clk
0:02:51.1]} 8... O-O {[%clk 0:02:39]} 9. Qd2 {[%clk 0:02:50]} 9... a5 {[%clk
0:02:35.5]} 10. a4 {[%clk 0:02:49.5]} 10... Be6 {[%clk 0:02:25.1]} 11. Be2
{[%clk 0:02:25.5]} 11... Nb4 {[%clk 0:02:08.8]} 12. O-O-O {[%clk 0:02:12.9]}
12... d5 {[%clk 0:02:00.8]} 13. exd5 {[%clk 0:02:12.7]} 13... Nfxd5 {[%clk
0:01:58.3]} 14. Nxd5 {[%clk 0:02:07.8]} 14... Bxd5 {[%clk 0:01:36]} 15. Kb1
{[%clk 0:01:39.2]} 15... Rc8 {[%clk 0:01:13.9]} 16. Bd3 {[%clk 0:01:35.8]} 16...
Qd7 {[%clk 0:00:53.8]} 17. Bb5 {[%clk 0:01:13.5]} 17... Qe6 {[%clk 0:00:49.3]}
18. c4 {[%clk 0:00:25.3]} 18... Bxc4 {[%clk 0:00:44]} 19. Bd7 {[%clk 0:00:22.7]}
19... Qg6+ {[%clk 0:00:43.3]} 20. Ka1 {[%clk 0:00:20.5]} 20... Bxb3 {[%clk
0:00:42.2]} 21. Bxc8 {[%clk 0:00:20.5]} 21... Nc2+ {[%clk 0:00:38.7]} 22. Kb1
{[%clk 0:00:20.4]} 22... Nxe3+ {[%clk 0:00:38.5]} 23. Ka1 {[%clk 0:00:19.8]}
23... Nc2+ {[%clk 0:00:37.7]} 24. Kb1 {[%clk 0:00:19.4]} 0-1

[Event "*** SCC Grand Prix: Titled Tuesday Blitz"]
[Site "Chess.com"]
[Date "2020.08.11"]
[Round "1"]
[White "m_ezat"]
[Black "mfwagnerpeixoto"]
[Result "0-1"]
[WhiteElo "2588"]
[BlackElo "2268"]
[TimeControl "180+1"]
[EndTime "10:06:12 PDT"]
[Termination "mfwagnerpeixoto won on time"]

1. d4 {[%clk 0:02:58.2]} 1... Nf6 {[%clk 0:02:59.3]} 2. c4 {[%clk 0:02:57.6]}
2... g6 {[%clk 0:02:59.8]} 3. Nc3 {[%clk 0:02:56.5]} 3... d5 {[%clk 0:02:59.7]}
4. Nf3 {[%clk 0:02:55.2]} 4... Bg7 {[%clk 0:02:59.1]} 5. Bf4 {[%clk 0:02:55.5]}
5... O-O {[%clk 0:02:58.1]} 6. Rc1 {[%clk 0:02:55.8]} 6... c6 {[%clk 0:02:51.4]}
7. e3 {[%clk 0:02:55.2]} 7... Bg4 {[%clk 0:02:50.9]} 8. Be2 {[%clk 0:02:53.8]}
8... Bxf3 {[%clk 0:02:48.2]} 9. Bxf3 {[%clk 0:02:54.2]} 9... dxc4 {[%clk
0:02:48.3]} 10. b3 {[%clk 0:02:54.5]} 10... cxb3 {[%clk 0:02:47.6]} 11. Qxb3
{[%clk 0:02:54.7]} 11... Qb6 {[%clk 0:02:44.5]} 12. Rb1 {[%clk 0:02:53.6]} 12...
Qxb3 {[%clk 0:02:39]} 13. Rxb3 {[%clk 0:02:53.3]} 13... b6 {[%clk 0:02:17.8]}
14. Ke2 {[%clk 0:02:41.5]} 14... e6 {[%clk 0:02:13.3]} 15. Nb5 {[%clk
0:02:12.6]} 15... Na6 {[%clk 0:01:53.5]} 16. Bxc6 {[%clk 0:02:10.5]} 16... Rac8
{[%clk 0:01:40]} 17. Nxa7 {[%clk 0:01:41.7]} 17... Ra8 {[%clk 0:01:09.1]} 18.
Bxa8 {[%clk 0:01:35.2]} 18... Rxa8 {[%clk 0:01:10]} 19. Nb5 {[%clk 0:01:31]}
19... Nd5 {[%clk 0:01:06.9]} 20. Bd6 {[%clk 0:01:27.6]} 20... Bf8 {[%clk
0:00:57.9]} 21. Bxf8 {[%clk 0:01:27.1]} 21... Kxf8 {[%clk 0:00:58.8]} 22. a3
{[%clk 0:01:19.6]} 22... Rc8 {[%clk 0:00:51.9]} 23. Kd2 {[%clk 0:01:17.8]} 23...
Nf6 {[%clk 0:00:47.8]} 0-1

[Event "*** SCC Grand Prix: Titled Tuesday Blitz"]
[Site "Chess.com"]
[Date "2020.08.11"]
[Round "1"]
[White "Lupul_Cenusiu"]
[Black "FMOlexandrProhorov"]
[Result "1-0"]
[WhiteElo "2504"]
[BlackElo "2105"]
[TimeControl "180+1"]
[EndTime "10:06:15 PDT"]
[Termination "Lupul_Cenusiu won on time"]

1. d4 {[%clk 0:02:56.8]} 1... Nf6 {[%clk 0:02:44.4]} 2. c4 {[%clk 0:02:55.5]}
2... c5 {[%clk 0:02:25]} 3. d5 {[%clk 0:02:54.1]} 3... b5 {[%clk 0:02:19.4]} 4.
Qc2 {[%clk 0:02:54.1]} 4... bxc4 {[%clk 0:01:53.5]} 5. e4 {[%clk 0:02:53.6]}
5... d6 {[%clk 0:01:52.8]} 6. Bxc4 {[%clk 0:02:52.5]} 6... Nbd7 {[%clk
0:01:44.6]} 7. Nf3 {[%clk 0:02:51.1]} 7... g6 {[%clk 0:01:39]} 8. O-O {[%clk
0:02:49.8]} 8... Bg7 {[%clk 0:01:34.7]} 9. Re1 {[%clk 0:02:49.4]} 9... O-O
{[%clk 0:01:34]} 10. h3 {[%clk 0:02:47.3]} 10... Nb6 {[%clk 0:01:28]} 11. Bf1
{[%clk 0:02:41.3]} 11... a5 {[%clk 0:01:22.5]} 12. Bf4 {[%clk 0:02:33]} 12...
Nfd7 {[%clk 0:01:09.4]} 13. Nbd2 {[%clk 0:02:25.7]} 13... Ba6 {[%clk 0:00:58.6]}
14. Bxa6 {[%clk 0:02:23.2]} 14... Rxa6 {[%clk 0:00:49.2]} 15. Rad1 {[%clk
0:02:07.1]} 15... Qc7 {[%clk 0:00:38.8]} 16. Nb1 {[%clk 0:01:53.4]} 16... Rb8
{[%clk 0:00:20.6]} 17. Na3 {[%clk 0:01:47]} 17... a4 {[%clk 0:00:13.2]} 18. Re2
{[%clk 0:01:38.7]} 18... Raa8 {[%clk 0:00:10.6]} 19. Nb5 {[%clk 0:01:19.8]}
19... Qd8 {[%clk 0:00:07.9]} 20. Nc3 {[%clk 0:01:08.4]} 20... Nc4 {[%clk
0:00:06.4]} 21. Rb1 {[%clk 0:00:57.7]} 1-0

[Event "*** SCC Grand Prix: Titled Tuesday Blitz"]
[Site "Chess.com"]
[Date "2020.08.11"]
[Round "1"]
[White "Zarinur"]
[Black "Sekar24"]
[Result "0-1"]
[WhiteElo "2151"]
[BlackElo "2516"]
[TimeControl "180+1"]
[EndTime "10:06:16 PDT"]
[Termination "Sekar24 won on time"]

1. e4 {[%clk 0:02:59.7]} 1... c5 {[%clk 0:02:59.2]} 2. Nf3 {[%clk 0:02:59.5]}
2... d6 {[%clk 0:02:59]} 3. Bb5+ {[%clk 0:02:58.8]} 3... Nd7 {[%clk 0:02:58.3]}
4. O-O {[%clk 0:02:57.3]} 4... a6 {[%clk 0:02:58.4]} 5. Bxd7+ {[%clk 0:02:56.3]}
5... Bxd7 {[%clk 0:02:59.3]} 6. d4 {[%clk 0:02:55.7]} 6... cxd4 {[%clk
0:03:00.2]} 7. Qxd4 {[%clk 0:02:56.1]} 7... e5 {[%clk 0:03:00.5]} 8. Qd3 {[%clk
0:02:55.4]} 8... h6 {[%clk 0:03:01]} 9. Rd1 {[%clk 0:02:45.4]} 9... Nf6 {[%clk
0:02:51.8]} 10. Nbd2 {[%clk 0:02:43.3]} 10... b5 {[%clk 0:02:36.2]} 11. c4
{[%clk 0:02:36.7]} 11... Be7 {[%clk 0:02:35.7]} 12. Nb3 {[%clk 0:01:43.3]} 12...
O-O {[%clk 0:02:20.6]} 13. Be3 {[%clk 0:01:28.6]} 13... bxc4 {[%clk 0:02:13.1]}
14. Qxc4 {[%clk 0:01:29.5]} 14... Bb5 {[%clk 0:02:13.1]} 15. Qc2 {[%clk
0:00:22]} 15... Rc8 {[%clk 0:02:12]} 16. Qb1 {[%clk 0:00:18.1]} 16... Qc7 {[%clk
0:02:12.1]} 17. a4 {[%clk 0:00:13.9]} 17... Bc4 {[%clk 0:02:06.9]} 18. Nbd2
{[%clk 0:00:12.4]} 18... Be6 {[%clk 0:01:57.1]} 19. Ra3 {[%clk 0:00:09.2]} 19...
Qb7 {[%clk 0:01:53.8]} 20. Rc1 {[%clk 0:00:07.6]} 20... d5 {[%clk 0:01:50.7]}
21. exd5 {[%clk 0:00:06.9]} 21... Nxd5 {[%clk 0:01:49.7]} 22. Nxe5 {[%clk
0:00:06.7]} 22... Bxa3 {[%clk 0:01:48.5]} 23. bxa3 {[%clk 0:00:05.6]} 23...
Rxc1+ {[%clk 0:01:47.9]} 24. Qxc1 {[%clk 0:00:05.1]} 24... Nxe3 {[%clk
0:01:48.2]} 25. fxe3 {[%clk 0:00:05.9]} 25... Rc8 {[%clk 0:01:45.9]} 26. Qf1
{[%clk 0:00:05.1]} 26... Qd5 {[%clk 0:01:44.6]} 27. Nef3 {[%clk 0:00:02.8]}
27... Rc2 {[%clk 0:01:35.6]} 28. Qxa6 {[%clk 0:00:02.1]} 28... Rxd2 {[%clk
0:01:32.8]} 29. Nxd2 {[%clk 0:00:03]} 29... Qxd2 {[%clk 0:01:32.6]} 30. Qa8+
{[%clk 0:00:02.4]} 30... Kh7 {[%clk 0:01:32.3]} 31. Qe4+ {[%clk 0:00:02]} 31...
g6 {[%clk 0:01:32.6]} 32. h3 {[%clk 0:00:01.7]} 32... Qc1+ {[%clk 0:01:31.3]}
33. Kh2 {[%clk 0:00:01.6]} 33... Qxa3 {[%clk 0:01:31.2]} 34. Qf4 {[%clk
0:00:01.5]} 34... Qa2 {[%clk 0:01:24.7]} 35. e4 {[%clk 0:00:01.3]} 35... Qxa4
{[%clk 0:01:22]} 0-1

[Event "*** SCC Grand Prix: Titled Tuesday Blitz"]
[Site "Chess.com"]
[Date "2020.08.11"]
[Round "1"]
[White "mapleaff"]
[Black "Virgo15"]
[Result "0-1"]
[WhiteElo "2335"]
[BlackElo "2677"]
[TimeControl "180+1"]
[EndTime "10:06:17 PDT"]
[Termination "Virgo15 won by resignation"]

1. d4 {[%clk 0:03:00.9]} 1... Nf6 {[%clk 0:02:58.7]} 2. Nf3 {[%clk 0:03:01.2]}
2... e6 {[%clk 0:02:58.5]} 3. c4 {[%clk 0:03:01.5]} 3... d5 {[%clk 0:02:58.4]}
4. Nc3 {[%clk 0:03:01.9]} 4... Bb4 {[%clk 0:02:57.6]} 5. Bg5 {[%clk 0:03:00.5]}
5... h6 {[%clk 0:02:55]} 6. Bxf6 {[%clk 0:02:59.6]} 6... Qxf6 {[%clk 0:02:55.8]}
7. e3 {[%clk 0:02:59.5]} 7... O-O {[%clk 0:02:55.4]} 8. Rc1 {[%clk 0:02:59.3]}
8... dxc4 {[%clk 0:02:48.3]} 9. Bxc4 {[%clk 0:03:00.2]} 9... c5 {[%clk
0:02:40.9]} 10. O-O {[%clk 0:02:59.5]} 10... cxd4 {[%clk 0:02:37.4]} 11. Nxd4
{[%clk 0:02:36.9]} 11... Nc6 {[%clk 0:02:31.6]} 12. Nxc6 {[%clk 0:02:35]} 12...
bxc6 {[%clk 0:02:32.5]} 13. Qb3 {[%clk 0:02:28.9]} 13... a5 {[%clk 0:02:27.9]}
14. a3 {[%clk 0:02:25.9]} 14... Be7 {[%clk 0:02:27.2]} 15. Qc2 {[%clk
0:02:19.9]} 15... Bb7 {[%clk 0:02:20.3]} 16. Ne4 {[%clk 0:02:14.7]} 16... Qe5
{[%clk 0:02:18.4]} 17. Be2 {[%clk 0:02:05.8]} 17... c5 {[%clk 0:02:04.5]} 18.
Nd2 {[%clk 0:01:24.3]} 18... Rab8 {[%clk 0:01:55.3]} 19. Nc4 {[%clk 0:01:12.5]}
19... Qg5 {[%clk 0:01:51.3]} 20. f3 {[%clk 0:01:06.5]} 20... Bd5 {[%clk
0:01:51.1]} 21. Qd2 {[%clk 0:00:51.5]} 21... Bf6 {[%clk 0:01:48.7]} 22. Qxa5
{[%clk 0:00:25.8]} 22... Bxc4 {[%clk 0:01:45.3]} 23. f4 {[%clk 0:00:16.4]} 23...
Qg6 {[%clk 0:01:39]} 24. Bxc4 {[%clk 0:00:15.6]} 24... Rxb2 {[%clk 0:01:39.2]}
25. Rf2 {[%clk 0:00:11.9]} 25... Qe4 {[%clk 0:01:31.1]} 26. Qe1 {[%clk
0:00:06.4]} 26... Rfb8 {[%clk 0:01:22.7]} 27. Be2 {[%clk 0:00:05.9]} 27... Qxe3
{[%clk 0:01:18.1]} 28. Bf3 {[%clk 0:00:06]} 28... Bd4 {[%clk 0:01:17.5]} 29.
Qxe3 {[%clk 0:00:04.5]} 29... Bxe3 {[%clk 0:01:18.4]} 30. Rf1 {[%clk 0:00:04.6]}
30... Rxf2 {[%clk 0:01:18.5]} 31. Rxf2 {[%clk 0:00:05.5]} 31... Rb1+ {[%clk
0:01:18.6]} 0-1

[Event "*** SCC Grand Prix: Titled Tuesday Blitz"]
[Site "Chess.com"]
[Date "2020.08.11"]
[Round "1"]
[White "Azatic"]
[Black "esrosenberg"]
[Result "1-0"]
[WhiteElo "2519"]
[BlackElo "2153"]
[TimeControl "180+1"]
[EndTime "10:06:17 PDT"]
[Termination "Azatic won by resignation"]

1. e4 {[%clk 0:03:00.9]} 1... e5 {[%clk 0:02:58.4]} 2. Nf3 {[%clk 0:03:00.9]}
2... Nc6 {[%clk 0:02:58.5]} 3. Bb5 {[%clk 0:03:01.3]} 3... a6 {[%clk 0:02:58.6]}
4. Ba4 {[%clk 0:03:01.1]} 4... Nf6 {[%clk 0:02:58.6]} 5. O-O {[%clk 0:03:00.8]}
5... Be7 {[%clk 0:02:58.7]} 6. Re1 {[%clk 0:03:00.5]} 6... b5 {[%clk 0:02:55.4]}
7. Bb3 {[%clk 0:03:00.7]} 7... O-O {[%clk 0:02:55.3]} 8. d4 {[%clk 0:03:00.9]}
8... Nxd4 {[%clk 0:02:33.9]} 9. Nxd4 {[%clk 0:02:59.9]} 9... exd4 {[%clk
0:02:32.8]} 10. e5 {[%clk 0:03:00.8]} 10... Ne8 {[%clk 0:02:24.6]} 11. Qxd4
{[%clk 0:02:48.5]} 11... c5 {[%clk 0:02:07]} 12. Qe4 {[%clk 0:02:36.5]} 12...
Ra7 {[%clk 0:01:50.9]} 13. c3 {[%clk 0:02:36]} 13... Bb7 {[%clk 0:01:45.2]} 14.
Qg4 {[%clk 0:02:34.3]} 14... d5 {[%clk 0:01:28.4]} 15. Nd2 {[%clk 0:02:12.3]}
15... d4 {[%clk 0:01:14.7]} 16. cxd4 {[%clk 0:01:59.2]} 16... Qxd4 {[%clk
0:01:06.2]} 17. Qg3 {[%clk 0:01:50.7]} 17... a5 {[%clk 0:00:50.1]} 18. Nf3
{[%clk 0:01:46.6]} 18... Qd8 {[%clk 0:00:27.9]} 19. Be3 {[%clk 0:01:40.1]} 19...
Ra6 {[%clk 0:00:23.9]} 20. Rad1 {[%clk 0:01:27.4]} 20... Qa8 {[%clk 0:00:20.5]}
21. e6 {[%clk 0:01:02.8]} 21... fxe6 {[%clk 0:00:14.2]} 22. Rd7 {[%clk
0:01:02.2]} 22... Bxf3 {[%clk 0:00:10.2]} 23. gxf3 {[%clk 0:00:49.9]} 23... Rxf3
{[%clk 0:00:09.7]} 24. Qg2 {[%clk 0:00:50.3]} 24... Rf7 {[%clk 0:00:08.2]} 25.
Qxa8 {[%clk 0:00:49.9]} 25... Rxa8 {[%clk 0:00:08.7]} 26. Bxe6 {[%clk
0:00:50.5]} 26... Nf6 {[%clk 0:00:07]} 27. Rxe7 {[%clk 0:00:48.6]} 1-0

[Event "*** SCC Grand Prix: Titled Tuesday Blitz"]
[Site "Chess.com"]
[Date "2020.08.11"]
[Round "1"]
[White "Klavdia_Nik"]
[Black "FMJoseHerrera"]
[Result "0-1"]
[WhiteElo "2062"]
[BlackElo "2495"]
[TimeControl "180+1"]
[EndTime "10:06:18 PDT"]
[Termination "FMJoseHerrera won on time"]

1. Nf3 {[%clk 0:02:50.6]} 1... Nf6 {[%clk 0:02:59.6]} 2. c4 {[%clk 0:02:48.3]}
2... g6 {[%clk 0:02:59.8]} 3. b3 {[%clk 0:02:47.9]} 3... Bg7 {[%clk 0:02:59.4]}
4. Bb2 {[%clk 0:02:48.6]} 4... d6 {[%clk 0:02:59.3]} 5. d4 {[%clk 0:02:45.8]}
5... O-O {[%clk 0:02:58.6]} 6. g3 {[%clk 0:02:35.2]} 6... d5 {[%clk 0:02:55.2]}
7. Bg2 {[%clk 0:02:31.8]} 7... dxc4 {[%clk 0:02:55.2]} 8. bxc4 {[%clk 0:02:31]}
8... c5 {[%clk 0:02:55.4]} 9. e3 {[%clk 0:02:07]} 9... cxd4 {[%clk 0:02:51.1]}
10. exd4 {[%clk 0:02:06.7]} 10... Nc6 {[%clk 0:02:46.3]} 11. O-O {[%clk
0:01:58.4]} 11... Bg4 {[%clk 0:02:45.8]} 12. h3 {[%clk 0:01:52.6]} 12... Bf5
{[%clk 0:02:46.1]} 13. Nbd2 {[%clk 0:01:50.7]} 13... Rc8 {[%clk 0:02:39.3]} 14.
d5 {[%clk 0:01:35.4]} 14... Nb4 {[%clk 0:02:36.7]} 15. Nd4 {[%clk 0:01:26.7]}
15... Bd3 {[%clk 0:02:34.4]} 16. Re1 {[%clk 0:01:25.5]} 16... Bxc4 {[%clk
0:02:34.5]} 17. Nxc4 {[%clk 0:01:20.6]} 17... Rxc4 {[%clk 0:02:35.4]} 18. Qb3
{[%clk 0:01:09.5]} 18... Qc8 {[%clk 0:02:29.2]} 19. Bf1 {[%clk 0:00:33.1]} 19...
Rxd4 {[%clk 0:02:20.7]} 20. Bxd4 {[%clk 0:00:28.9]} 20... Nc2 {[%clk 0:02:20.7]}
21. Rac1 {[%clk 0:00:19.8]} 21... Nxd4 {[%clk 0:02:18.8]} 22. Rxc8 {[%clk
0:00:18.6]} 22... Nxb3 {[%clk 0:02:19.1]} 23. Rxf8+ {[%clk 0:00:18.5]} 23...
Bxf8 {[%clk 0:02:20]} 24. axb3 {[%clk 0:00:18.4]} 24... Nxd5 {[%clk 0:02:20.4]}
25. Bc4 {[%clk 0:00:18]} 25... Nb6 {[%clk 0:02:19.8]} 26. Be2 {[%clk 0:00:17.1]}
26... e6 {[%clk 0:02:18.5]} 27. Bf3 {[%clk 0:00:17.3]} 27... a5 {[%clk
0:02:06.3]} 28. Bxb7 {[%clk 0:00:15]} 28... Kg7 {[%clk 0:02:06.6]} 29. Rd1
{[%clk 0:00:11.5]} 29... Bb4 {[%clk 0:02:06.7]} 30. Kg2 {[%clk 0:00:10.5]} 30...
Kf6 {[%clk 0:02:06.4]} 31. f4 {[%clk 0:00:10.6]} 31... Ke7 {[%clk 0:02:06]} 32.
Bc6 {[%clk 0:00:09.1]} 32... h6 {[%clk 0:02:04.8]} 33. Kf3 {[%clk 0:00:08.5]}
33... Bc3 {[%clk 0:01:56.1]} 34. Ke4 {[%clk 0:00:08.1]} 34... Bb4 {[%clk
0:01:56.2]} 35. g4 {[%clk 0:00:08.3]} 35... f5+ {[%clk 0:01:53.4]} 36. gxf5
{[%clk 0:00:08]} 36... gxf5+ {[%clk 0:01:54.1]} 37. Kf3 {[%clk 0:00:07.9]} 37...
h5 {[%clk 0:01:51.4]} 38. Rg1 {[%clk 0:00:04.2]} 38... Kd6 {[%clk 0:01:50.9]}
39. Bb5 {[%clk 0:00:03.1]} 39... Kc5 {[%clk 0:01:47.7]} 40. Be8 {[%clk
0:00:02.8]} 40... h4 {[%clk 0:01:46.8]} 41. Rg6 {[%clk 0:00:01.9]} 41... Nd5
{[%clk 0:01:28.6]} 0-1

[Event "*** SCC Grand Prix: Titled Tuesday Blitz"]
[Site "Chess.com"]
[Date "2020.08.11"]
[Round "1"]
[White "TranJMinh"]
[Black "Rap_woyska"]
[Result "1-0"]
[WhiteElo "2831"]
[BlackElo "2408"]
[TimeControl "180+1"]
[EndTime "10:06:19 PDT"]
[Termination "TranJMinh won by resignation"]

1. d4 {[%clk 0:03:00.9]} 1... d5 {[%clk 0:02:59.5]} 2. c4 {[%clk 0:03:00.9]}
2... c6 {[%clk 0:02:59.6]} 3. Nf3 {[%clk 0:03:00.7]} 3... Nf6 {[%clk 0:02:59.9]}
4. e3 {[%clk 0:03:01.1]} 4... a6 {[%clk 0:03:00.2]} 5. Nbd2 {[%clk 0:02:58.9]}
5... e6 {[%clk 0:02:51.6]} 6. Bd3 {[%clk 0:02:58.1]} 6... Nbd7 {[%clk
0:02:42.4]} 7. O-O {[%clk 0:02:57.5]} 7... Bd6 {[%clk 0:02:42.5]} 8. b3 {[%clk
0:02:56.7]} 8... O-O {[%clk 0:02:41.3]} 9. Bb2 {[%clk 0:02:56.8]} 9... Qe7
{[%clk 0:02:41.3]} 10. Qc2 {[%clk 0:02:52.1]} 10... dxc4 {[%clk 0:02:39.8]} 11.
Nxc4 {[%clk 0:02:52]} 11... Re8 {[%clk 0:02:29.4]} 12. e4 {[%clk 0:02:43.2]}
12... Bc7 {[%clk 0:01:58.7]} 13. e5 {[%clk 0:02:41.7]} 13... Nd5 {[%clk
0:01:57.9]} 14. Bxh7+ {[%clk 0:02:40.6]} 14... Kh8 {[%clk 0:01:56.9]} 15. Be4
{[%clk 0:02:36.9]} 15... b5 {[%clk 0:01:50.3]} 16. Ne3 {[%clk 0:02:27.3]} 16...
Bb7 {[%clk 0:01:48.8]} 17. Bxd5 {[%clk 0:02:18.5]} 17... exd5 {[%clk 0:01:47.4]}
18. Nxd5 {[%clk 0:02:18.6]} 18... cxd5 {[%clk 0:01:43.7]} 19. Qxc7 {[%clk
0:02:19.5]} 19... Rab8 {[%clk 0:01:42.2]} 20. Qa5 {[%clk 0:02:13.5]} 20... Nf8
{[%clk 0:01:41]} 21. Ba3 {[%clk 0:02:12.4]} 21... Qd7 {[%clk 0:01:41]} 22. Rac1
{[%clk 0:02:10.9]} 22... Ne6 {[%clk 0:01:40.9]} 23. Bd6 {[%clk 0:02:08.7]} 23...
Rbc8 {[%clk 0:01:40.6]} 24. Qd2 {[%clk 0:02:08.8]} 24... Kg8 {[%clk 0:01:39.6]}
25. Ng5 {[%clk 0:02:07.7]} 25... Nxg5 {[%clk 0:01:36.5]} 26. Qxg5 {[%clk
0:02:07.5]} 26... Qe6 {[%clk 0:01:35.5]} 27. h4 {[%clk 0:02:05.7]} 27... Bc6
{[%clk 0:01:33.7]} 28. Rc5 {[%clk 0:02:05.2]} 28... Bd7 {[%clk 0:01:32.5]} 29.
Bc7 {[%clk 0:02:03]} 29... b4 {[%clk 0:01:24.6]} 30. Rfc1 {[%clk 0:01:57.7]}
30... Bb5 {[%clk 0:01:23.4]} 31. Kh2 {[%clk 0:01:53]} 31... Bd3 {[%clk
0:01:09.9]} 32. f3 {[%clk 0:01:48.7]} 32... Qd7 {[%clk 0:01:01]} 33. Bd6 {[%clk
0:01:45.6]} 33... Rxc5 {[%clk 0:00:59.9]} 34. Rxc5 {[%clk 0:01:46.5]} 34... Qe6
{[%clk 0:00:53.7]} 35. Rc7 {[%clk 0:01:32.5]} 35... Rc8 {[%clk 0:00:46.5]} 36.
Rxc8+ {[%clk 0:01:23.5]} 36... Qxc8 {[%clk 0:00:47.4]} 37. Bxb4 {[%clk
0:01:23.6]} 37... Qc2 {[%clk 0:00:47.6]} 38. Be7 {[%clk 0:01:13.4]} 38... Qxa2
{[%clk 0:00:30.3]} 39. h5 {[%clk 0:01:11.8]} 39... Kh7 {[%clk 0:00:27.5]} 40.
Bf8 {[%clk 0:01:10.1]} 1-0

[Event "*** SCC Grand Prix: Titled Tuesday Blitz"]
[Site "Chess.com"]
[Date "2020.08.11"]
[Round "1"]
[White "Kildepiotr"]
[Black "Mbneu"]
[Result "1-0"]
[WhiteElo "2586"]
[BlackElo "2224"]
[TimeControl "180+1"]
[EndTime "10:06:23 PDT"]
[Termination "Kildepiotr won by resignation"]

1. Nf3 {[%clk 0:02:50.9]} 1... c5 {[%clk 0:02:57.9]} 2. g3 {[%clk 0:02:50.9]}
2... e6 {[%clk 0:02:55.1]} 3. Bg2 {[%clk 0:02:51.5]} 3... d5 {[%clk 0:02:55.5]}
4. O-O {[%clk 0:02:52.4]} 4... Nc6 {[%clk 0:02:55.9]} 5. d3 {[%clk 0:02:53]}
5... Be7 {[%clk 0:02:53.7]} 6. Nbd2 {[%clk 0:02:53.9]} 6... h5 {[%clk
0:02:52.1]} 7. e4 {[%clk 0:02:47.3]} 7... h4 {[%clk 0:02:48.5]} 8. exd5 {[%clk
0:02:46.7]} 8... exd5 {[%clk 0:02:47.9]} 9. Re1 {[%clk 0:02:46.1]} 9... Be6
{[%clk 0:02:43.3]} 10. Nb3 {[%clk 0:02:38.8]} 10... hxg3 {[%clk 0:02:34.4]} 11.
hxg3 {[%clk 0:02:38.3]} 11... Nh6 {[%clk 0:02:30.4]} 12. Bf4 {[%clk 0:02:30]}
12... Ng4 {[%clk 0:02:26.5]} 13. Ng5 {[%clk 0:02:15.7]} 13... Bxg5 {[%clk
0:02:15.5]} 14. Qxg4 {[%clk 0:02:14.8]} 14... Bxf4 {[%clk 0:02:12.2]} 15. Qxf4
{[%clk 0:02:12.4]} 15... b6 {[%clk 0:01:55.3]} 16. c4 {[%clk 0:02:11.6]} 16...
Nb4 {[%clk 0:01:50.4]} 17. Rad1 {[%clk 0:02:01.6]} 17... O-O {[%clk 0:01:34.3]}
18. a3 {[%clk 0:01:51.6]} 18... Nc6 {[%clk 0:01:23.2]} 19. d4 {[%clk 0:01:44.3]}
19... cxd4 {[%clk 0:01:21.9]} 20. Nxd4 {[%clk 0:01:43]} 20... Nxd4 {[%clk
0:01:20.3]} 21. Rxd4 {[%clk 0:01:41.6]} 21... Rc8 {[%clk 0:01:12]} 22. cxd5
{[%clk 0:01:37.8]} 22... Bd7 {[%clk 0:01:12.2]} 23. d6 {[%clk 0:01:36.1]} 23...
Rc5 {[%clk 0:01:09]} 24. Re5 {[%clk 0:01:29.6]} 24... Re8 {[%clk 0:01:04.9]} 25.
Rde4 {[%clk 0:01:23.1]} 25... Re6 {[%clk 0:00:58.3]} 26. Rxc5 {[%clk 0:01:20.8]}
26... bxc5 {[%clk 0:00:57.8]} 27. Rxe6 {[%clk 0:01:19.9]} 27... Bxe6 {[%clk
0:00:58.7]} 28. Qe5 {[%clk 0:01:18.1]} 28... c4 {[%clk 0:00:57.9]} 29. Qc5
{[%clk 0:01:09]} 29... Qb6 {[%clk 0:00:55.1]} 30. Qxb6 {[%clk 0:01:04.8]} 30...
axb6 {[%clk 0:00:54.7]} 31. Bc6 {[%clk 0:01:03.7]} 31... Kf8 {[%clk 0:00:54.6]}
32. f4 {[%clk 0:01:03.1]} 32... f6 {[%clk 0:00:50.8]} 33. Kf2 {[%clk 0:01:02.5]}
33... Bf5 {[%clk 0:00:50]} 34. Ke3 {[%clk 0:01:01.9]} 34... Kf7 {[%clk
0:00:50.4]} 35. Bd5+ {[%clk 0:01:01.3]} 35... Ke8 {[%clk 0:00:49.9]} 36. Bc6+
{[%clk 0:00:54.5]} 36... Bd7 {[%clk 0:00:48.8]} 37. Bxd7+ {[%clk 0:00:51.4]}
37... Kxd7 {[%clk 0:00:49.4]} 38. Kd4 {[%clk 0:00:51.8]} 38... Kxd6 {[%clk
0:00:49.2]} 39. Kxc4 {[%clk 0:00:52.1]} 39... g5 {[%clk 0:00:48.2]} 40. Kd4
{[%clk 0:00:47.7]} 40... gxf4 {[%clk 0:00:46.8]} 41. gxf4 {[%clk 0:00:47.6]}
41... b5 {[%clk 0:00:47.2]} 42. b3 {[%clk 0:00:47.2]} 42... f5 {[%clk
0:00:46.3]} 43. a4 {[%clk 0:00:47]} 43... bxa4 {[%clk 0:00:45.4]} 44. bxa4
{[%clk 0:00:47.9]} 44... Ke6 {[%clk 0:00:44.2]} 45. Kc5 {[%clk 0:00:47.5]} 1-0